bitfinex/quotes_SOLUSD_20240621
["timestamp","ask_amount","ask_price","bid_price","bid_amount"]
[1718956898510,20.0,132.04,131.92,15.3498]
[1718956898826,45.0,132.03,131.92,15.3498]
[1718956899136,20.0,132.02,131.92,15.3498]
[1718956899429,20.0,132.02,131.93,0.17]
[1718956899617,20.0,132.04,131.92,15.3498]
[1718956899799,24.03607563,132.04,131.92,15.3498]
[1718956900003,4.03607563,132.02,131.92,15.3498]
[1718956900241,20.0,132.04,131.92,15.3498]
[1718956900529,20.0,132.04,131.93,0.17]
[1718956900748,20.0,132.04,131.93,0.34]
[1718956900903,20.0,132.04,131.92,15.3498]
[1718956901098,20.0,132.04,131.93,0.34]
[1718956901727,20.0,132.04,131.92,15.3498]
[1718956902725,45.0,132.03,131.92,15.3498]
[1718956902933,20.0,132.02,131.92,15.3498]
[1718956903701,45.0,132.01,131.92,15.3498]
[1718956903910,20.0,132.0,131.92,15.3498]
[1718956904525,20.0,132.04,131.92,15.3498]
[1718956904841,45.0,132.03,131.92,15.3498]
[1718956905010,20.0,132.02,131.92,15.3498]
[1718956905205,45.0,132.01,131.92,15.3498]
[1718956905409,20.0,132.0,131.92,15.3498]
[1718956906007,20.0,132.0,131.92,38.2298]
[1718956906216,6.24662033,132.05,131.93,26.3706]
[1718956906511,6.518,132.06,131.93,6.3706]
[1718956906831,6.518,132.06,131.93,6.0306]
[1718956907130,29.03,132.03,131.93,6.0306]
[1718956907338,45.0,132.02,131.93,6.0306]
[1718956907543,65.0,132.02,131.93,6.0306]
[1718956907710,44.95118471,132.02,131.93,6.0306]
[1718956911243,73.98118471,132.02,131.93,6.0306]
[1718956911544,44.95118471,132.02,131.93,6.0306]
[1718956912337,20.0,132.02,131.93,6.0306]
[1718956912529,20.0,132.03,131.93,6.0306]
[1718956913017,60.49227021,132.05,131.93,6.0306]
[1718956913220,45.0,132.04,131.93,6.0306]
[1718956913421,20.0,132.03,131.93,6.0306]
[1718956914337,45.0,132.02,131.93,6.0306]
[1718956914637,20.0,132.01,131.93,6.0306]
[1718956915520,58.6843963,132.01,131.93,6.0306]
[1718956915834,45.0,132.0,131.93,6.0306]
[1718956916220,20.0,131.99,131.93,6.0306]
[1718956917006,20.0,132.03,131.93,6.0306]
[1718956918123,45.0,132.02,131.93,6.0306]
[1718956918330,20.0,132.01,131.93,6.0306]
[1718956918833,20.0,132.01,131.94,45.0]
[1718956919010,20.0,132.03,131.93,6.0306]
[1718956920149,45.0,132.02,131.93,6.0306]
[1718956920321,20.0,132.01,131.93,6.0306]
[1718956921925,45.0,132.0,131.93,6.0306]
[1718956922120,20.0,131.99,131.93,6.0306]
[1718956922820,20.0,132.03,131.93,6.0306]
[1718956923025,45.0,132.02,131.93,6.0306]
[1718956923339,20.0,132.01,131.93,6.0306]
[1718956923838,45.0,132.0,131.93,6.0306]
[1718956924147,20.0,131.99,131.93,6.0306]
[1718956924718,20.0,131.99,131.92,15.3498]
[1718956924719,74.03,131.98,131.92,15.3498]
[1718956925043,20.0,131.97,131.89,21.8216]
[1718956925221,45.0,131.96,131.89,21.8216]
[1718956925420,20.0,131.95,131.89,21.8216]
[1718956925941,20.0,131.97,131.89,21.8216]
[1718956926158,45.0,131.96,131.89,21.8216]
[1718956926339,20.0,131.95,131.89,21.8216]
[1718956926641,20.0,131.95,131.89,15.6523]
[1718956926825,45.0,131.94,131.89,15.6523]
[1718956927151,20.0,131.93,131.89,15.6523]
[1718956927513,20.0,131.93,131.86,15.851]
[1718956928012,45.0,131.92,131.86,15.851]
[1718956928240,20.0,131.91,131.86,15.851]
[1718956930741,20.0,131.91,131.85,6.5217]
[1718956932039,45.0,131.9,131.85,6.5217]
[1718956932346,20.0,131.89,131.85,6.5217]
[1718956933670,20.0,131.89,131.83,15.2753]
[1718956934343,45.0,131.88,131.78,22.8912]
[1718956934543,45.0,131.88,131.75,6.5694]
[1718956934544,29.03,131.86,131.75,6.5694]
[1718956934756,65.0,131.85,131.75,6.5694]
[1718956935320,72.20858058,131.85,131.75,6.5694]
[1718956937435,27.20858058,131.85,131.75,6.5694]
[1718956938025,29.03,131.83,131.75,6.5694]
[1718956938229,20.0,131.82,131.75,6.5694]
[1718956938550,20.0,131.82,131.75,8.08479633]
[1718956938741,20.0,131.83,131.75,6.5694]
[1718956940237,20.0,131.86,131.76,45.0]
[1718956940635,20.0,131.86,131.78,6.5455]
[1718956940838,20.0,131.87,131.79,45.0]
[1718956941174,15.00124145,131.88,131.79,45.0]
[1718956941358,261.12598243,131.89,131.79,45.0]
[1718956941533,255.1,131.89,131.79,45.0]
[1718956941859,255.1,131.89,131.8,16.2369]
[1718956943153,49.03,131.88,131.8,16.2369]
[1718956943355,155.52141034,131.88,131.8,16.2369]
[1718956943856,45.0,131.87,131.8,16.2369]
[1718956944060,20.0,131.86,131.8,16.2369]
[1718956945841,20.0,131.87,131.8,16.2369]
[1718956946147,20.0,131.88,131.81,6.2626]
[1718956946355,20.0,131.91,131.82,0.17]
[1718956946659,255.1,131.94,131.83,15.6931]
[1718956946843,29.03,131.95,131.84,6.3451]
[1718956947361,29.03,131.95,131.85,0.17]
[1718956947861,20.0,131.94,131.84,6.1751]
[1718956950049,45.0,131.93,131.84,6.1751]
[1718956950366,20.0,131.92,131.84,6.1751]
[1718956952071,20.0,131.94,131.84,6.1751]
[1718956952746,262.31365205,131.99,131.88,16.4207]
[1718956953059,255.1,131.99,131.88,16.4207]
[1718956955275,20.0,131.98,131.88,16.4207]
[1718956955452,145.0,131.97,131.88,16.4207]
[1718956955763,20.0,131.96,131.88,16.4207]
[1718956956464,120.0,131.98,131.88,16.4207]
[1718956956657,45.0,131.97,131.88,16.4207]
[1718956956963,20.0,131.96,131.88,16.4207]
[1718956957467,220.0,131.96,131.88,16.4207]
[1718956957642,45.0,131.95,131.88,16.4207]
[1718956957967,20.0,131.94,131.88,16.4207]
[1718956959170,120.0,131.94,131.88,16.4207]
[1718956961182,20.0,131.94,131.88,16.4207]
[1718956962678,100.0,131.93,131.88,16.4207]
[1718956962877,100.0,131.93,131.87,6.2544]
[1718956962878,20.0,131.92,131.84,22.4006]
[1718956963057,145.0,131.91,131.84,22.4006]
[1718956963255,20.0,131.9,131.84,22.4006]
[1718956963583,45.0,131.89,131.8,22.4006]
[1718956963877,20.0,131.88,131.8,22.4006]
[1718956965056,20.0,131.9,131.8,22.4006]
[1718956965259,20.0,131.91,131.8,22.4006]
[1718956965763,45.0,131.9,131.8,22.4006]
[1718956965960,20.0,131.89,131.8,22.4006]
[1718956966777,45.0,131.88,131.8,22.4006]
[1718956966981,20.0,131.87,131.8,22.4006]
[1718956967868,20.0,131.9,131.8,22.4006]
[1718956968068,45.0,131.89,131.8,22.4006]
[1718956968370,20.0,131.88,131.8,22.4006]
[1718956969567,20.0,131.9,131.8,22.4006]
[1718956970090,45.0,131.89,131.8,22.4006]
[1718956970293,20.0,131.88,131.8,22.4006]
[1718956970874,20.0,131.89,131.8,22.4006]
[1718956972175,45.0,131.88,131.8,22.4006]
[1718956972369,20.0,131.87,131.8,22.4006]
[1718956973095,120.0,131.87,131.71,21.8237]
[1718956973294,100.0,131.85,131.71,21.8237]
[1718956973472,65.0,131.84,131.71,21.8237]
[1718956975400,94.1,131.84,131.71,21.8237]
[1718956976915,94.1,131.84,131.72,0.34]
[1718956977076,65.0,131.84,131.72,0.34]
[1718956977477,65.0,131.84,131.72,0.17]
[1718956978801,65.0,131.84,131.71,21.8237]
[1718956979489,29.1,131.82,131.71,21.8237]
[1718956979687,65.0,131.81,131.71,21.8237]
[1718956980622,194.1,131.81,131.71,21.8237]
[1718956981410,29.1,131.78,131.71,21.8237]
[1718956981588,65.0,131.77,131.71,21.8237]
[1718956984123,20.0,131.77,131.71,21.8237]
[1718956984406,20.0,131.8,131.71,21.8237]
[1718956986012,29.1,131.78,131.71,21.8237]
[1718956986261,65.0,131.77,131.71,21.8237]
[1718956988892,65.0,131.77,131.68,16.4539]
[1718956988893,29.1,131.74,131.68,16.4539]
[1718956989188,45.0,131.73,131.68,16.4539]
[1718956989388,20.0,131.72,131.68,16.4539]
[1718956989897,74.1,131.71,131.67,6.1277]
[1718956990107,20.0,131.7,131.67,6.1277]
[1718956991023,20.0,131.7,131.64,6.5565]
[1718956991235,20.0,131.7,131.63,0.8139306]
[1718956991236,29.1,131.68,131.63,0.8139306]
[1718956991527,65.0,131.67,131.63,0.8139306]
[1718956991693,20.0,131.67,131.63,0.8139306]
[1718956992110,7.21365205,131.77,131.63,0.8139306]
[1718956992319,7.21365205,131.73,131.63,0.8139306]
[1718956992625,20.0,131.72,131.63,0.8139306]
[1718956992804,49.1,131.75,131.64,22.3301]
[1718956993622,20.0,131.75,131.64,22.3301]
[1718956993809,20.0,131.76,131.64,22.3301]
[1718956994522,20.0,131.76,131.67,15.2971]
[1718956994730,20.0,131.79,131.67,15.2971]
[1718956994923,33.99,131.8,131.67,15.2971]
[1718956995412,63.08130726,131.8,131.67,15.2971]
[1718956995618,16.41007096,131.8,131.69,6.539]
[1718956995828,8.50983111,131.8,131.69,6.539]
[1718956996200,8.50983111,131.8,131.7,16.1478]
[1718956996395,14.39033931,131.83,131.7,16.1478]
[1718956996601,6.49141034,131.83,131.7,16.1478]
[1718956996814,12.57108616,131.83,131.7,16.1478]
[1718956997330,60.86715387,131.79,131.7,16.1478]
[1718956997530,60.86715387,131.81,131.7,16.1478]
[1718956997723,6.7019572,131.82,131.7,16.1478]
[1718956997929,19.78473821,131.83,131.71,6.539]
[1718956998115,80.65189208,131.83,131.71,6.539]
[1718956998430,60.86715387,131.8,131.68,6.0731]
[1718956998604,60.86715387,131.77,131.68,6.0731]
[1718956998807,20.0,131.76,131.68,6.0731]
[1718956999008,80.86715387,131.76,131.68,6.0731]
[1718956999236,20.0,131.76,131.68,6.0731]
[1718956999405,20.0,131.79,131.68,6.0731]
[1718956999611,45.0,131.78,131.68,6.0731]
[1718956999810,20.0,131.77,131.68,6.0731]
[1718957000922,60.86715387,131.75,131.68,6.0731]
[1718957001126,60.86715387,131.73,131.68,6.0731]
[1718957001523,20.0,131.72,131.68,6.0731]
[1718957002115,20.0,131.77,131.68,6.0731]
[1718957002335,60.86715387,131.73,131.68,6.0731]
[1718957002507,20.0,131.72,131.68,6.0731]
[1718957003410,20.0,131.75,131.68,6.0731]
[1718957003747,45.0,131.74,131.67,15.1585]
[1718957003905,20.0,131.73,131.67,15.1585]
[1718957004108,20.0,131.73,131.64,6.4972]
[1718957004109,45.0,131.72,131.64,6.4972]
[1718957004328,20.0,131.71,131.64,6.4972]
[1718957005363,45.0,131.7,131.64,6.4972]
[1718957005552,20.0,131.69,131.64,6.4972]
[1718957007850,20.0,131.74,131.64,6.4972]
[1718957008058,33.37175406,131.74,131.64,6.4972]
[1718957008240,4.47999353,131.73,131.64,6.4972]
[1718957008635,17.81568127,131.73,131.64,6.4972]
[1718957008837,20.0,131.72,131.64,6.4972]
[1718957009039,25.46731704,131.72,131.64,6.4972]
[1718957009245,45.0,131.71,131.64,6.4972]
[1718957009428,20.0,131.7,131.64,6.4972]
[1718957009628,55.35152351,131.69,131.64,6.4972]
[1718957009830,20.0,131.68,131.64,6.4972]
[1718957010450,5.46731704,131.72,131.64,6.4972]
[1718957010451,20.0,131.71,131.64,6.4972]
[1718957011644,255.1,131.75,131.65,15.0929]
[1718957012439,10.35152351,131.72,131.65,15.0929]
[1718957012636,264.12152596,131.75,131.65,15.0929]
[1718957013152,10.35152351,131.73,131.65,15.0929]
[1718957013531,272.5488676,131.75,131.65,15.0929]
[1718957013730,65.0,131.74,131.65,15.0929]
[1718957016866,20.0,131.74,131.65,15.0929]
[1718957017160,20.0,131.74,131.66,6.5879]
[1718957018251,45.0,131.73,131.66,6.5879]
[1718957018441,20.0,131.72,131.66,6.5879]
[1718957021541,20.0,131.74,131.66,6.5879]
[1718957021855,45.0,131.73,131.66,6.5879]
[1718957022047,20.0,131.72,131.66,6.5879]
[1718957023256,45.0,131.71,131.66,6.5879]
[1718957023444,20.0,131.7,131.66,6.5879]
[1718957024062,53.99,131.73,131.66,6.5879]
[1718957024265,53.99,131.73,131.65,15.0929]
[1718957024266,6.34940634,131.72,131.65,15.0929]
[1718957024459,20.0,131.71,131.65,15.0929]
[1718957024660,45.0,131.7,131.65,15.0929]
[1718957024964,20.0,131.69,131.65,15.0929]
[1718957025756,45.0,131.68,131.65,15.0929]
[1718957025962,20.0,131.67,131.63,7.3746306]
[1718957026146,45.0,131.66,131.63,0.8139306]
[1718957026345,20.0,131.65,131.63,0.8139306]
[1718957028946,45.0,131.64,131.63,0.8139306]
[1718957029148,65.0,131.64,131.63,0.8139306]
[1718957031856,72.20858058,131.64,131.63,0.8139306]
[1718957032160,15.8435,131.63,131.49,0.8139306]
[1718957032366,33.99,131.6,131.49,0.8139306]
[1718957032757,65.0,131.59,131.49,0.8139306]
[1718957032955,30.0,131.58,131.49,0.8139306]
[1718957033141,20.0,131.57,131.49,0.8139306]
[1718957034562,24.47492206,131.6,131.49,0.8139306]
[1718957034764,45.0,131.59,131.49,0.8139306]
[1718957034968,20.0,131.58,131.49,0.8139306]
[1718957035178,45.0,131.57,131.49,0.8139306]
[1718957035482,20.0,131.56,131.49,0.8139306]
[1718957036059,45.0,131.55,131.49,0.8139306]
[1718957036361,20.0,131.54,131.49,0.8139306]
[1718957037156,24.47492206,131.6,131.49,0.8139306]
[1718957037358,45.0,131.59,131.49,0.8139306]
[1718957037785,20.0,131.58,131.49,0.8139306]
[1718957037965,45.0,131.57,131.49,0.8139306]
[1718957038478,20.0,131.56,131.49,0.8139306]
[1718957038671,45.0,131.55,131.49,0.8139306]
[1718957038870,20.0,131.54,131.49,0.8139306]
[1718957039282,45.0,131.53,131.49,0.8139306]
[1718957039580,20.0,131.52,131.49,0.8139306]
[1718957040786,20.0,131.58,131.49,0.8139306]
[1718957040988,45.0,131.57,131.49,0.8139306]
[1718957041284,20.0,131.56,131.49,0.8139306]
[1718957041482,45.0,131.55,131.49,0.8139306]
[1718957041794,20.0,131.54,131.49,0.8139306]
[1718957042589,6.49141034,131.58,131.49,0.8139306]
[1718957042590,20.0,131.57,131.49,0.8139306]
[1718957042791,45.0,131.56,131.49,0.8139306]
[1718957042963,20.0,131.55,131.49,0.8139306]
[1718957043164,20.0,131.57,131.49,0.8139306]
[1718957045886,20.0,131.57,131.5,22.0407]
[1718957046068,29.21,131.61,131.5,22.0407]
[1718957046069,20.0,131.6,131.5,22.0407]
[1718957046468,261.59141034,131.63,131.51,0.17]
[1718957046805,6.49141034,131.63,131.51,0.34]
[1718957047701,6.49141034,131.63,131.52,16.4075]
[1718957048169,20.0,131.62,131.52,16.4075]
[1718957048585,20.0,131.62,131.53,0.34]
[1718957048763,20.0,131.62,131.54,6.5337]
[1718957048962,20.0,131.63,131.54,6.5337]
[1718957049567,20.0,131.63,131.55,15.3491]
[1718957049769,20.0,131.65,131.55,15.3491]
[1718957050173,20.0,131.65,131.56,0.34]
[1718957050787,20.0,131.65,131.57,22.0511]
[1718957050966,42.56983111,131.7,131.57,22.0511]
[1718957051167,8.50983111,131.7,131.58,0.17]
[1718957051393,8.50983111,131.7,131.58,0.34]
[1718957052289,20.0,131.69,131.58,0.34]
[1718957054075,20.0,131.69,131.59,21.1655]
[1718957055793,45.0,131.68,131.59,21.1655]
[1718957055995,20.0,131.67,131.59,21.1655]
[1718957056495,45.0,131.66,131.59,21.1655]
[1718957056685,20.0,131.65,131.59,21.1655]
[1718957056894,20.0,131.67,131.59,21.1655]
[1718957057275,45.0,131.66,131.59,21.1655]
[1718957057484,20.0,131.68,131.59,21.1655]
[1718957057485,20.0,131.65,131.59,21.1655]
[1718957057995,20.0,131.68,131.59,21.1655]
[1718957068178,7.89111632,131.74,131.61,22.729]
[1718957068390,20.0,131.73,131.62,0.34]
[1718957069004,20.0,131.73,131.62,23.19]
[1718957069375,20.0,131.73,131.62,0.34]
[1718957069877,20.0,131.73,131.63,16.3068]
[1718957070302,74.16,131.72,131.63,16.3068]
[1718957070508,83.0928972,131.72,131.63,16.3068]
[1718957070697,20.0,131.71,131.63,16.3068]
[1718957070874,45.0,131.7,131.63,16.3068]
[1718957071073,20.0,131.69,131.63,16.3068]
[1718957072273,20.0,131.71,131.63,16.3068]
[1718957072707,20.0,131.71,131.65,6.4939]
[1718957072885,36.37365205,131.75,131.65,6.4939]
[1718957074281,20.0,131.74,131.65,6.4939]
[1718957076326,45.0,131.73,131.65,6.4939]
[1718957076805,20.0,131.72,131.65,6.4939]
[1718957076990,20.0,131.72,131.63,16.3068]
[1718957076991,100.0,131.7,131.63,16.3068]
[1718957077183,94.16,131.69,131.63,16.3068]
[1718957077509,49.16,131.69,131.63,16.3068]
[1718957078782,45.0,131.68,131.63,16.3068]
[1718957078987,20.0,131.67,131.63,16.3068]
[1718957079689,20.0,131.71,131.63,16.3068]
[1718957079899,100.0,131.68,131.63,16.3068]
[1718957080081,65.0,131.67,131.63,16.3068]
[1718957082008,20.0,131.67,131.63,16.3068]
[1718957082188,20.0,131.69,131.63,16.3068]
[1718957082717,45.0,131.68,131.63,16.3068]
[1718957082910,45.0,131.68,131.61,6.3806]
[1718957082911,20.0,131.67,131.61,6.3806]
[1718957083501,20.0,131.69,131.61,6.3806]
[1718957083699,45.0,131.68,131.6,15.8564]
[1718957083902,20.0,131.67,131.6,15.8564]
[1718957084210,45.0,131.66,131.6,15.8564]
[1718957084397,20.0,131.65,131.6,15.8564]
[1718957085621,20.0,131.69,131.6,15.8564]
[1718957085791,45.0,131.68,131.6,15.8564]
[1718957085991,20.0,131.67,131.6,15.8564]
[1718957086204,45.0,131.66,131.6,15.8564]
[1718957086401,20.0,131.65,131.6,15.8564]
[1718957086912,20.0,131.69,131.6,15.8564]
[1718957087586,45.0,131.68,131.6,15.8564]
[1718957087787,20.0,131.67,131.6,15.8564]
[1718957088188,45.0,131.66,131.6,15.8564]
[1718957088385,20.0,131.65,131.6,15.8564]
[1718957089012,20.0,131.69,131.6,15.8564]
[1718957089188,45.0,131.68,131.6,15.8564]
[1718957089393,20.0,131.67,131.6,15.8564]
[1718957090217,45.0,131.66,131.6,15.8564]
[1718957090419,20.0,131.65,131.6,15.8564]
[1718957093522,20.0,131.69,131.6,15.8564]
[1718957094517,45.0,131.68,131.6,15.8564]
[1718957094703,20.0,131.67,131.6,15.8564]
[1718957094909,20.0,131.69,131.6,15.8564]
[1718957096299,45.0,131.68,131.6,15.8564]
[1718957096498,20.0,131.67,131.6,15.8564]
[1718957097311,20.0,131.69,131.61,0.17]
[1718957097521,20.0,131.69,131.62,6.5785]
[1718957097802,20.0,131.71,131.62,6.5785]
[1718957099228,45.0,131.7,131.62,6.5785]
[1718957099436,20.0,131.69,131.62,6.5785]
[1718957101005,45.0,131.68,131.62,6.5785]
[1718957101319,45.0,131.68,131.6,15.8564]
[1718957101320,20.0,131.67,131.6,15.8564]
[1718957101526,45.0,131.66,131.6,15.8564]
[1718957101700,20.0,131.65,131.6,15.8564]
[1718957103316,20.0,131.66,131.6,15.8564]
[1718957103841,20.0,131.69,131.61,0.17]
[1718957104127,35.16719712,131.72,131.62,6.0769]
[1718957104819,29.17,131.72,131.63,15.3557]
[1718957105825,35.15585478,131.72,131.63,15.3557]
[1718957106824,29.17,131.69,131.63,15.3557]
[1718957107426,65.0,131.68,131.63,15.3557]
[1718957108527,112.82931042,131.68,131.63,15.3557]
[1718957108837,112.82931042,131.68,131.59,6.4102]
[1718957108838,29.17,131.66,131.59,6.4102]
[1718957109124,45.0,131.65,131.59,6.4102]
[1718957109324,49.17,131.64,131.59,6.4102]
[1718957109701,45.0,131.63,131.57,15.2206]
[1718957110041,20.0,131.62,131.57,15.2206]
[1718957111035,20.0,131.64,131.57,15.2206]
[1718957111202,24.47999353,131.67,131.57,15.2206]
[1718957112208,20.0,131.67,131.57,15.2206]
[1718957113441,29.17,131.65,131.57,15.2206]
[1718957113725,65.0,131.64,131.57,15.2206]
[1718957113929,20.0,131.64,131.57,15.2206]
[1718957114118,45.0,131.63,131.57,15.2206]
[1718957114317,20.0,131.62,131.57,15.2206]
[1718957116121,49.17,131.62,131.57,15.2206]
[1718957116721,45.0,131.61,131.57,15.2206]
[1718957116940,20.0,131.6,131.57,15.2206]
[1718957119338,20.0,131.6,131.52,22.2278]
[1718957123049,20.0,131.61,131.52,22.2278]
[1718957124322,45.0,131.6,131.52,22.2278]
[1718957124647,20.0,131.59,131.52,22.2278]
[1718957125937,49.17,131.59,131.52,22.2278]
[1718957126134,45.0,131.58,131.52,22.2278]
[1718957126339,20.0,131.57,131.52,22.2278]
[1718957128348,29.17,131.56,131.52,22.2278]
[1718957128552,20.0,131.55,131.52,22.2278]
[1718957130149,20.0,131.55,131.52,15.7841]
[1718957131440,20.0,131.55,131.49,7.4217306]
[1718957131639,45.0,131.54,131.49,7.4217306]
[1718957131944,20.0,131.53,131.49,7.4217306]
[1718957132341,49.17,131.53,131.49,0.8139306]
[1718957132544,45.0,131.52,131.49,0.8139306]
[1718957132732,20.0,131.51,131.49,0.8139306]
[1718957135741,29.17,131.53,131.49,0.8139306]
[1718957135933,6.02182827,131.54,131.49,0.8139306]
[1718957136138,8.9328972,131.55,131.49,0.8139306]
[1718957137155,20.0,131.54,131.5,22.8482]
[1718957137348,20.0,131.55,131.5,22.8482]
[1718957137852,20.0,131.57,131.5,22.8482]
[1718957139340,26.07117263,131.57,131.5,22.8482]
[1718957140566,45.0,131.56,131.5,22.8482]
[1718957140747,20.0,131.55,131.5,22.8482]
[1718957141752,45.0,131.54,131.49,0.8139306]
[1718957141944,20.0,131.53,131.49,0.8139306]
[1718957142345,45.0,131.52,131.49,0.8139306]
[1718957142537,20.0,131.51,131.49,0.8139306]
[1718957142769,20.0,131.53,131.49,0.8139306]
[1718957143137,20.0,131.55,131.49,0.8139306]
[1718957143836,49.17,131.56,131.49,0.8139306]
[1718957144037,45.0,131.55,131.49,0.8139306]
[1718957144254,20.0,131.54,131.49,0.8139306]
[1718957144670,45.0,131.53,131.49,0.8139306]
[1718957144959,20.0,131.52,131.49,0.8139306]
[1718957145354,20.0,131.55,131.49,0.8139306]
[1718957145753,45.0,131.54,131.49,0.8139306]
[1718957145955,20.0,131.53,131.49,0.8139306]
[1718957146362,20.0,131.55,131.49,0.8139306]
[1718957146867,29.17,131.53,131.49,0.8139306]
[1718957147072,20.0,131.52,131.49,0.8139306]
[1718957147864,45.0,131.51,131.49,0.8139306]
[1718957148066,20.0,131.5,131.49,0.8139306]
[1718957152453,20.0,131.5,131.45,15.4189]
[1718957153355,45.0,131.49,131.45,15.4189]
[1718957153552,20.0,131.48,131.45,15.4189]
[1718957154575,20.0,131.48,131.42,15.77]
[1718957154765,45.0,131.47,131.42,15.77]
[1718957154972,20.0,131.46,131.42,15.77]
[1718957155691,20.0,131.5,131.42,15.77]
[1718957155978,45.0,131.49,131.42,15.77]
[1718957156176,20.0,131.48,131.42,15.77]
[1718957156376,20.0,131.5,131.42,15.77]
[1718957158565,45.0,131.49,131.42,15.77]
[1718957158874,20.0,131.48,131.42,15.77]
[1718957159076,45.0,131.47,131.42,15.77]
[1718957159376,20.0,131.46,131.42,15.77]
[1718957163157,20.0,131.5,131.42,15.77]
[1718957164091,6.06015137,131.51,131.42,15.77]
[1718957164293,86.96136596,131.52,131.42,15.77]
[1718957164581,57.79136596,131.51,131.42,15.77]
[1718957164757,7.88636829,131.52,131.42,15.77]
[1718957164956,29.17,131.52,131.42,15.77]
[1718957165158,57.79136596,131.51,131.42,15.77]
[1718957165361,20.0,131.5,131.42,15.77]
[1718957165765,20.0,131.51,131.42,15.77]
[1718957166173,57.79136596,131.48,131.42,15.77]
[1718957166375,65.0,131.47,131.42,15.77]
[1718957166985,122.79136596,131.47,131.42,15.77]
[1718957167155,65.0,131.47,131.42,15.77]
[1718957167357,29.17,131.46,131.39,21.4621]
[1718957167562,45.0,131.45,131.39,21.4621]
[1718957167759,20.0,131.44,131.39,21.4621]
[1718957168188,20.0,131.44,131.37,15.3085]
[1718957168189,45.0,131.43,131.37,15.3085]
[1718957168394,20.0,131.42,131.37,15.3085]
[1718957169379,45.0,131.41,131.37,15.3085]
[1718957169584,20.0,131.42,131.37,15.3085]
[1718957172288,45.0,131.41,131.37,15.3085]
[1718957172471,20.0,131.4,131.37,15.3085]
[1718957173494,20.0,131.42,131.37,15.3085]
[1718957177595,45.0,131.41,131.36,0.8139306]
[1718957177784,20.0,131.4,131.36,0.8139306]
[1718957178669,20.0,131.42,131.36,0.8139306]
[1718957178873,45.0,131.41,131.36,0.8139306]
[1718957179191,29.17,131.4,131.36,0.8139306]
[1718957179388,20.0,131.39,131.36,0.8139306]
[1718957179604,45.0,131.38,131.36,0.8139306]
[1718957179889,20.0,131.37,131.36,0.8139306]
[1718957180080,65.0,131.37,131.36,0.8139306]
[1718957182584,20.0,131.37,131.36,0.8139306]
[1718957182965,255.1,131.44,131.37,6.4232]
[1718957183160,284.27,131.44,131.37,6.4232]
[1718957183364,309.82061511,131.44,131.38,15.5944]
[1718957183766,284.27,131.44,131.38,15.5944]
[1718957183960,309.82061511,131.44,131.38,15.5944]
[1718957184166,284.27,131.44,131.38,15.5944]
[1718957184375,309.82061511,131.44,131.38,15.5944]